Cogmind - Beta 15 @@@ ROGUE MODE // 2025.10.14 @ 05:02:12 Player: NQH Result: Destroyed by X-62 Marksman with Gauss Rifle Performance ------------- Evolutions (2) 1000 Regions Visited (3) 600 Robots Destroyed (35) 175 Value Destroyed (754) 754 Prototype IDs (2) 40 Alien Tech Used (0) 0 Bonus (0) 0 TOTAL SCORE: 2569 Bonus ------- None Cogmind --------- Core Integrity 0/550 Matter 300/300 Energy 99/100 System Corruption 5% Temperature Cool (-73) Movement Core (100) Ox1 Location -8/Materials Parts ------- > --- POWER (1) -------- (None) > --- PROPULSION (4) --- (None) > --- UTILITY (2) ------ Cryofiber Web Signal Interpreter > --- WEAPON (4) ------- Axe > --- INVENTORY (5) ---- Axe Axe Axe Axe Axe Peak State ------------ > --- POWER ------------ Heavy Ion Engine > --- PROPULSION ------- Improved Flight Unit Improved Flight Unit Improved Flight Unit Improved Flight Unit > --- UTILITY ---------- Signal Interpreter Reflective Plating > --- WEAPON ----------- Field Laser Field Laser Light Assault Rifle Light Assault Rifle > --- INVENTORY -------- (None) [Rating: 27] Favorites ----------- Power Ion Engine Engine Ion Engine Power Core Light Nuclear Core Propulsion Improved Flight Unit Treads Light Treads Wheel Wheel Flight Unit Improved Flight Unit Utility Small Storage Unit Device Cryofiber Web Storage Small Storage Unit Processor Signal Interpreter Protection Reflective Plating Weapon Great Maul Energy Gun Field Laser Ballistic Gun Light Assault Rifle Launcher Mini Grenade Launcher Special Weapon Plasma Cutter Impact Weapon Great Maul Slashing Weapon Axe Build | -11 -10 -9 -8 ------- Run | Yrd Mat Mat Mat Slots Evolved 4 | . . 2 2 Power . | . . . . Propulsion 2 | . . 2 . Utility . | . . . . Weapon 2 | . . . 2 Parts Attached 51 | 7 16 11 17 Power 7 | 1 2 1 3 Engine 5 | 1 2 1 1 Core 2 | . . . 2 Reactor . | . . . . Propulsion 17 | 2 7 3 5 Treads 3 | . . . 3 Leg . | . . . . Wheel 6 | 2 4 . . Hover . | . . . . Flight 8 | . 3 3 2 Utility 7 | 1 1 3 2 Device 2 | . . . 2 Storage 1 | 1 . . . Processor 3 | . 1 2 . Hackware . | . . . . Protection 1 | . . 1 . Artifact . | . . . . Weapon 20 | 3 6 4 7 Energy Gun 6 | 2 2 2 . Energy Cannon . | . . . . Ballistic Gun 5 | 1 2 . 2 Ballistic Cannon . | . . . . Launcher 2 | . 2 . . Special Weapon 2 | . . 2 . Impact Weapon 3 | . . . 3 Slashing Weapon 2 | . . . 2 Piercing Weapon . | . . . . Special Melee Weapon . | . . . . Unidentified Prototypes 2 | . 1 . 1 Corrupted Parts 2 | . . . 2 System Corruption 5 | . . . 5 Parts Lost 19 | . 2 2 15 Power 2 | . . . 2 Propulsion 8 | . 1 . 7 Utility 1 | . . . 1 Weapon 8 | . 1 2 5 Highest Loss Streak 10 | . 2 2 10 To Critical Strikes 1 | . 1 . . Average Backups 4 | . 7 3 2 Power . | . . . . Propulsion 1 | . 4 1 . Utility . | . . . . Weapon 1 | . . 2 1 Tool/Special . | . . . . Unused Backups 5 | . . . 5 Power . | . . . . Propulsion . | . . . . Utility . | . . . . Weapon 5 | . . . 5 Tool/Special . | . . . . Average Slot Usage (%) 80 | . 81 79 79 Engine 7 | . 14 11 . Core 1 | . . . 2 Treads 7 | . . . 15 Wheel 10 | . 26 6 . Flight 11 | . . 31 12 Device 2 | . . . 4 Storage 7 | . 14 11 . Processor 6 | . 5 . 9 Protection 1 | . . 4 1 Energy Gun 5 | . 3 10 4 Ballistic Gun 7 | . 14 . 4 Impact Weapon 8 | . . . 16 Slashing Weapon 3 | . . . 6 Peak Build Rating 27 | 5 9 23 27 Average Rating 14 | 3 7 16 20 On Entrance 7 | . 5 5 21 Naked Turns . | . . . . Heaviest Build 21 | 12 12 20 21 Greatest Support 60 | 26 26 26 60 Greatest Overweight (x) 4 | . 3 . 4 Average Overweight (x) . | . . . . Largest Inventory Capacity 8 | 8 8 8 8 Average Capacity 6 | 6 8 8 5 Most Carried 8 | 2 8 8 5 Average Carried 4 | . 7 3 2 Final Capacity 8 | 8 8 8 5 Final Carried 8 | 1 8 3 5 Class Distribution -------------------- 67% | Mutant 24% | Sprinter 7% | Scavenger-Mutant Dominant Class ---------------- Mutant | -10/Materials Sprinter | -9/Materials Mutant | -8/Materials Resources | -11 -10 -9 -8 ----------- Run | Yrd Mat Mat Mat Matter Collected 888 | 251 267 96 274 Remotely . | . . . . Salvage Created 1009 | . 399 166 444 Parts 46 | . 30 3 13 Haulers Intercepted . | . . . . Recyclers Shooed 2 | . 2 . . Parts Field Recycled . | . . . . Retrieved Matter . | . . . . Parts Self-Destructed . | . . . . Prevented . | . . . . Kills | -11 -10 -9 -8 ------- Run | Yrd Mat Mat Mat Combat Hostiles Destroyed 27 | . 13 3 11 Melee 8 | . . . 8 Guns 14 | . 10 2 2 Cannons 1 | . . 1 . AOE 3 | . 3 . . Classes Destroyed 7 | . 5 2 . Worker 1 | . 1 . . Builder 3 | . 3 . . Tunneler 2 | . . 1 1 Recycler 2 | . 1 . 1 Swarmer 13 | . 9 . 4 Grunt 10 | . 4 2 4 Sentry 4 | . . 1 3 Best Kill Streak 6 | . 6 2 4 Combat Bots Only 4 | . 4 2 4 Max Kills in Single Turn 2 | . 2 1 1 Gunslinging . | . . . . Exploded 2 | . 2 . . Melee 1 | . . . 1 Uniques/NPCs Destroyed . | . . . . Combat | -11 -10 -9 -8 -------- Run | Yrd Mat Mat Mat Hostile Shots Fired 272 | . 76 47 149 Missed 102 | . 28 20 54 Hits 170 | . 48 27 95 Projectile 170 | . 48 27 95 Critical Strikes 5 | . 1 . 4 Damage Taken 2513 | . 525 329 1659 Core 815 | . 177 85 553 Absorbed by Shields . | . . . . Ignored by Resistances 28 | . . 20 8 Core Remaining (%) 69 | 100 29 78 . Volleys Fired 58 | . 40 12 6 Largest 4 | . 2 2 4 Hottest 166 | . 80 126 166 Shots Fired 102 | . 59 21 22 Gun 83 | . 53 8 22 Cannon . | . . . . Launcher 6 | . 6 . . Special 13 | . . 13 . Kinetic 52 | . 41 . 11 Thermal 44 | . 12 21 11 Explosive 6 | . 6 . . Electromagnetic . | . . . . Robot Hit Streak 13 | . 7 5 13 Robot Miss Streak 6 | . 6 2 2 Penetration Max . | . . . . Secondary Targets 2 | . 1 . 1 Max Gunslinging Chain 1 | . 1 . 1 Shots Hit Robots 90 | . 30 15 45 Core Hits 47 | . 25 5 17 Critical Kills . | . . . . Critical Parts Destroyed 4 | . . . 4 Critical Strikes 5 | . . 1 4 Burn 1 | . . 1 . Smash 4 | . . . 4 Melee Attacks 33 | . . . 33 Impact 15 | . . . 15 Slashing 18 | . . . 18 Piercing . | . . . . Sneak Attacks 4 | . . . 4 Combat Hostiles . | . . . . Follow-up Attacks 7 | . . . 7 Damage Inflicted 2132 | . 617 214 1301 Guns 709 | . 366 103 240 Cannons . | . . . . Explosions 249 | . 249 . . Melee 1061 | . . . 1061 Ramming 2 | . 2 . . Kinetic 357 | . 286 . 71 Thermal 463 | . 80 214 169 Explosive 249 | . 249 . . Electromagnetic . | . . . . Impact 447 | . . . 447 Slashing 614 | . . . 614 Piercing . | . . . . Highest Corruption 5 | . . . 5 Average Corruption 4 | . . . 4 Corruption Purged . | . . . . Corruption Blocked . | . . . . Effects 5 | . . . 5 Message Errors 2 | . . . 2 Matter Fused 1 | . . . 1 Energy Discharges 1 | . . . 1 Alerts 1 | . . . 1 Overload Shots . | . . . . Overflow Damage 293 | . 4 7 282 Projectiles 7 | . . 7 . Explosions 4 | . 4 . . Melee 282 | . . . 282 Knockbacks 1 | . . . 1 Impact 1 | . . . 1 Kinetic . | . . . . Secondary . | . . . . Self-Inflicted Damage 8 | . 8 . . Shots 1 | . 1 . . Rammed 2 | . 2 . . Targets Rammed 2 | . 2 . . Kicked . | . . . . Crushed . | . . . . Highest Temperature 609 | . 108 278 609 Average Temperature 186 | . 43 160 312 Received Heat Transfer 597 | . 66 162 369 Effects 12 | . . 2 10 Shutdowns 2 | . . . 2 Interference 2 | . . 2 . Matter Decay 1 | . . . 1 Damage (major) 6 | . . . 6 Damage (core) 1 | . . . 1 Siege Activations . | . . . . Martial Activations . | . . . . Shielding Activations . | . . . . Robots Disrupted . | . . . . Combat Hostiles . | . . . . Robots Corrupted 1 | . . . 1 Combat Hostiles 1 | . . . 1 Parts Fried 3 | . . . 3 Impact Corruptions 6 | . . . 6 Robots Melted . | . . . . Combat Hostiles . | . . . . Parts Melted 2 | . . 2 . Heat Transferred 1211 | . 175 666 370 Parts Sabotaged . | . . . . Parts Stolen . | . . . . Parts Stripped . | . . . . Power Chain Reactions . | . . . . Alert | -11 -10 -9 -8 ------- Run | Yrd Mat Mat Mat Maximum Alert Level . | . . . . Low Security (%) 100 | 100 100 100 100 Level 1 . | . . . . Level 2 . | . . . . Level 3 . | . . . . Level 4 . | . . . . Level 5 . | . . . . High Security . | . . . . Max Security . | . . . . Peak Influence 193 | . 193 118 159 Initial 78 | . . 78 49 Average 69 | . 68 60 81 Influence Increases 959 | . 389 160 410 Destroy 0b10 Robot/C 540 | . 260 60 220 Destroy 0b10 Robot/NC 40 | . 25 5 10 Destroy Leader 90 | . 40 20 30 Disable Machine 15 | . 15 . . Destroy Structure 34 | . 34 . . Partial Spotted 15 | . . . 15 Lose Combat Pursuer 225 | . 15 75 135 Influence Decreases 920 | . 204 227 489 Entered New Map 176 | . . 107 69 Time Decay 554 | . 184 100 270 Lost Part 190 | . 20 20 150 Squads Dispatched 8 | . 3 1 4 Investigation 2 | . 2 . . Extermination . | . . . . Reinforcement 6 | . 1 1 4 Assault . | . . . . Garrison . | . . . . Intercept . | . . . . Searches Triggered . | . . . . Construction Impeded . | . . . . Haulers Reinforced . | . . . . Active Scanning Responses . | . . . . Cargo Convoy Interrupts . | . . . . Stealth | -11 -10 -9 -8 --------- Run | Yrd Mat Mat Mat Distress Signals 5 | . 1 1 3 Communications Jammed . | . . . . Distress Signals . | . . . . Times Spotted 64 | . 19 14 31 Peak Tracking Total 13 | . 4 9 13 Tactical Retreats 6 | . 1 2 3 Traps | -11 -10 -9 -8 ------- Run | Yrd Mat Mat Mat Traps Triggered 4 | . 3 . 1 Indirectly . | . . . . Trap Hack Attempts . | . . . . Triggered . | . . . . Disarmed . | . . . . Reprogrammed . | . . . . Reused . | . . . . Traps Extracted . | . . . . Installed . | . . . . Triggered . | . . . . Machines | -11 -10 -9 -8 ---------- Run | Yrd Mat Mat Mat Machines Disabled 1 | . 1 . . Max in Single Turn 1 | . 1 . . Machines Repaired . | . . . . Machines Dismantled . | . . . . Machines Sabotaged . | . . . . Overloaded Fab Kills . | . . . . Hacking | -11 -10 -9 -8 --------- Run | Yrd Mat Mat Mat Machines Accessed . | . . . . Terminals . | . . . . Fabricators . | . . . . Repair Stations . | . . . . Recycling Units . | . . . . Scanalyzers . | . . . . Garrison Access . | . . . . Total Hacks . | . . . . Successful . | . . . . Failed . | . . . . Catastrophic . | . . . . Database Lockouts . | . . . . Manual . | . . . . Terminals . | . . . . Fabricators . | . . . . Repair Stations . | . . . . Recycling Units . | . . . . Scanalyzers . | . . . . Garrison Access . | . . . . Terminal Hacks . | . . . . Fabricator Hacks . | . . . . Repair Station Hacks . | . . . . Recycling Unit Hacks . | . . . . Scanalyzer . | . . . . Garrison Access Hacks . | . . . . Unauthorized Hacks . | . . . . Terminals . | . . . . Fabricators . | . . . . Repair Stations . | . . . . Recycling Units . | . . . . Scanalyzers . | . . . . Garrison Access . | . . . . Data Cores Recovered . | . . . . Used . | . . . . Hacking Detections . | . . . . Full Trace Events . | . . . . Feedback Events . | . . . . Feedback Blocked . | . . . . Robot Schematics Acquired . | . . . . Robots Built . | . . . . Authchips . | . . . . Time . | . . . . Total Robot Build Rating . | . . . . Part Schematics Acquired . | . . . . Parts Built . | . . . . Authchips . | . . . . Time . | . . . . Total Part Build Rating . | . . . . Parts Repaired . | . . . . Time . | . . . . Parts Recycled . | . . . . Recycled Matter . | . . . . Retrieved Matter . | . . . . Retrieved Components . | . . . . Parts Scanalyzed . | . . . . Part Schematics Acquired . | . . . . Parts Damaged . | . . . . Bothacking | -11 -10 -9 -8 ------------ Run | Yrd Mat Mat Mat Used RIF Installer . | . . . . Robots Hacked . | . . . . Non-combat . | . . . . Combat . | . . . . Robot Hacks Applied . | . . . . Relay Couplers Released . | . . . . Fabnet Peak Effective % . | . . . . Robots Rewired . | . . . . Allies Hacked . | . . . . Hacks Repelled . | . . . . Allies | -11 -10 -9 -8 -------- Run | Yrd Mat Mat Mat Total Allies . | . . . . Largest Group . | . . . . Highest-Rated Group . | . . . . Highest-Rated Ally . | . . . . Total Orders . | . . . . Ally Attacks . | . . . . Total Damage . | . . . . Kills . | . . . . Allies Corrupted . | . . . . Allies Melted . | . . . . Intel | -11 -10 -9 -8 ------- Run | Yrd Mat Mat Mat Active Infowar (turns) . | . . . . Robot Analysis Total . | . . . . Derelict Logs Recovered . | . . . . Drone Launches . | . . . . Drone Recoveries . | . . . . Exploration | -11 -10 -9 -8 ------------- Run | Yrd Mat Mat Mat Turns Passed 1323 | 71 450 207 595 Spaces Moved 1070 | 64 327 268 411 Core 10 | 4 3 . 3 Treads 132 | . . . 132 Legs . | . . . . Wheels 435 | 60 320 55 . Hover . | . . . . Flight 493 | . 4 213 276 Fastest Speed 31 | 50 80 31 31 Average Speed 72 | 88 88 43 75 Slowest Speed 250 | 100 205 90 250 Overloaded Moves . | . . . . Propulsion Burnouts . | . . . . Robots Hopped 8 | . . 3 5 Potential Cave-ins . | . . . . Cave-ins Triggered . | . . . . Exploration Rate (%) 31 | 4 59 32 30 Regions Visited 3 Branch Regions . Pre-discovered Areas . | . . . . Known Exits Taken 1 | . . 1 . Unknown Exits Taken 2 | 1 1 . . Scrap Searched . | . . . . Spaces Dug . | . . . . Terrain Destroyed 38 | . 38 . . Melee . | . . . . Projectile . | . . . . AOE 38 | . 38 . . Terrain Rammed . | . . . . Walls Destroyed . | . . . . Machines Disabled . | . . . . Actions | -11 -10 -9 -8 --------- Run | Yrd Mat Mat Mat Total 1465 | 76 433 322 634 Wait 202 | . 21 28 153 Move 1051 | 63 326 261 401 Hop 8 | . . 3 5 Pick Up 18 | 1 8 1 8 Fast Attach 37 | 7 13 4 13 Attach 15 | . 1 7 7 Detach 15 | 2 2 2 9 Swap 8 | 1 5 1 1 Drop 28 | 2 15 3 8 Fire 58 | . 40 12 6 Melee 23 | . . . 23 Ram 2 | . 2 . . Kick . | . . . . Crush . | . . . . Escape Stasis . | . . . . Rewire . | . . . . Trap . | . . . . Miscellaneous . | . . . . Route ------- -11/Scrapyard -10/Materials (discovered 2 exits: [*Mat] / [*Min]) -9/Materials (discovered 2 exits: *Mat / [*Min]) -8/Materials History --------- Turn | Location | Event 7 | -11/Scrapyard | Discovered new exit (range 16) 72 | -11/Scrapyard | Entered Materials 140 | -10/Materials | Discovered new exit (range 16) 234 | -10/Materials | Core integrity fell below 50% 452 | -10/Materials | Discovered new exit (range 16) 522 | -10/Materials | Entered another Materials area 522 | -9/Materials | Evolved 2 slots: Propulsion x2 543 | -9/Materials | Build established: Mutant 682 | -9/Materials | Discovered new exit (range 16) 726 | -9/Materials | Discovered new exit (range 5) 729 | -9/Materials | Identified exit to Materials 729 | -9/Materials | Entered another Materials area 729 | -8/Materials | Evolved 2 slots: Weapon x2 850 | -8/Materials | Build established: Sprinter 914 | -8/Materials | Core integrity fell below 50% 977 | -8/Materials | Lost 10 parts (1p4n1u4w) 1186 | -8/Materials | Build established: Mutant 1256 | -8/Materials | Core integrity fell below 20% 1324 | -8/Materials | Destroyed by X-62 Marksman with Gauss Rifle Last Messages --------------- dispatching Specialist reinforcements to area. 01293_ W-25 Informer sends out distress signal. 01302_ Slug penetrates Wall. 01307_ Great Maul blasted off. 01309_ Penetrated by Slug. 01311_ Lgt. Treads destroyed. 01314_ Great Maul destroyed. 01318_ System corrupted: IFF burst signal emitted. 01318_ Lgt. Treads destroyed. 01318_ Great Maul blasted off. 01320_ H-61 Shepherd calls for reinforcements. 01320_ ALERT: Hostile activity reported, dispatching reinforcements to area. 01320_ Lgt. Nuclear Core destroyed. 01324_ Penetrated by Slug. 01324_ Critical hit (Burn: +37). 01324_ Penetrated by Slug. 01324_ Lgt. Treads destroyed. 01324_ Knocked back. 01324_ Penetrated by Slug. Map ----- +----------------------------------------------------+ | ?####??????# """ #??????????????????????????????? | | ?# +??????# "R #??????????????????????????????? | | ?# #??????# """ #??????????????????????????????? | | ?# +???????? % ???????????????????????????????? | | ?# #???????###+###???????? #????????????????????? | | ?# ######### ####### #????????????????????? | | ?# #????????????????????? | | ## #????????????????????? | | # = ######## #????????????????????? | | # %* #??????# ####### #????????????????????? | | # % #??????## ##?????? #????????????????????? | | # #???????# #??????? #????????????????????? | | ! #???????# #??????? #????????????????????? | | #???????# #??????? #????????????????????? | | # % #???????# #??????? #????????????????????? | | ##+########### #??????? #????????????????????? | | %! ## #??????? #????????????????????? | | // """ ## #??????# #????????????????????? | | / """ ## #??????# #????????????????????? | | / """ ## #??????+ #????????????????????? | | ## #??????# #????????????????????? | | ############## #??????# #????????????????????? | | ???????????###w #????### ##???????????????????? | | ???????????# x;;####;% #???????????????????? | | ???????????# % x% #???????????????????? | | ????????" + @ H #???????????????????? | | ???????????# !% %! #???????????????????? | | ???????????# ! ##% #???????????????????? | | ????????? ; ##############?????????????? | | ????????####t #???# #?????????????? | | ?????????#"" ^ #???# """ #?????????????? | | ?????????#"Ta =[[##??# """ #?????????????? | | ?????????#"" =[]T#??# """ #?????????????? | | ?????????### """ [[ ##??# #?????????????? | | ???????????# """ ###?# """ #?????????????? | | ???????????# """ ""#?# """ #?????????????? | | ???????????# Y"#?# """ #?????????????? | | ???????????# ""#?# #?????????????? | | ???????????# """ ###?#####+####?????????????? | | ???????????# """ ####### #??????????????? | | ?????????? """ #??????????????? | | ????????? T #??????????????? | | ??????? #??????????????? | | ????????###########%= ####### ] #??????????????? | | ??????????????????# #?????##### #??????????????? | | ??????????????????# #?????????# #??????????????? | | ??????????????????# #?????????# #??????????????? | | ??????????????????# #?????????# #??????????????? | | ??????????????????# #?????????# #??????????????? | | ??????????????????# #?????????# #??????????????? | +----------------------------------------------------+ Best States ------------- Heat Dissipation 45 Energy Generation 14 Energy Capacity 280 Matter Stores 300 Matter Capacity 300 Sight Range 16 Terrain Scan Density 85 Base Temperature (-) 100 Armor Coverage 150 Resistance: TH 10 Evasion (%) 63 Targeting Accuracy 6 Recoil Reduction 3 Item Schematics ----------------- None Robot Schematics ------------------ None Fabricated ------------ Nothing Repaired ---------- Nothing Alien Tech Used ----------------- None Achievements -------------- None Challenges ------------ None Game ------ Seed AutogunAccelerationCorpse Manual? 0 Play Time 00:14:20 Cumulative 33.0 hours Start 2025.10.14 @ 04:51:45 End 2025.10.14 @ 05:02:12 Sessions 1 Manual Loads 0 Difficulty Rogue Special Mode None Game No. 134 Rogue 134 Adventurer 0 Explorer 0 Win Type - Total 0 Types 0/0/0/0/0/0/0/0/0/0 Lore% 11 Gallery% 31 Achievement% 28 Wizard Run 0 Options --------- Layout 1 ASCII 0 Keyboard 1 Movement Vi Keybinds 0 Fullscreen 1 Font 16/SmallcapsGlow Map View 55x38 Zoom Use 0% Tactical HUD 1 Map Filters NONE Filters NONE Steam 1 RUN: eb86ad05-7abc-4b1c-a87b-dc9ce701af73